[Event "*** SCC Grand Prix: Titled Tuesday Blitz"]
[Site "Chess.com"]
[Date "2020.06.02"]
[Round "2"]
[White "csati17"]
[Black "Vaathi_Coming"]
[Result "0-1"]
[WhiteElo "2550"]
[BlackElo "2866"]
[TimeControl "180+1"]
[EndTime "10:17:51 PDT"]
[Termination "Vaathi_Coming won by resignation"]

1. c4 {[%clk 0:03:00.9]} 1... e5 {[%clk 0:02:59.5]} 2. g3 {[%clk 0:03:01]} 2...
Nf6 {[%clk 0:02:58.9]} 3. Bg2 {[%clk 0:03:00.8]} 3... Nc6 {[%clk 0:02:58.9]} 4.
Nc3 {[%clk 0:03:00.6]} 4... Bc5 {[%clk 0:02:57.1]} 5. e3 {[%clk 0:03:00.4]} 5...
h5 {[%clk 0:02:54.6]} 6. h3 {[%clk 0:02:59.7]} 6... d6 {[%clk 0:02:44]} 7. Nge2
{[%clk 0:02:59.7]} 7... Bf5 {[%clk 0:02:31.6]} 8. d4 {[%clk 0:02:57.1]} 8... Bb6
{[%clk 0:02:31.9]} 9. d5 {[%clk 0:02:36.4]} 9... Ne7 {[%clk 0:02:31.9]} 10. e4
{[%clk 0:02:32.5]} 10... Bd7 {[%clk 0:02:32]} 11. Bg5 {[%clk 0:02:19.4]} 11...
Nh7 {[%clk 0:02:26.6]} 12. Bd2 {[%clk 0:02:06.7]} 12... Ng6 {[%clk 0:02:26.6]}
13. Qc2 {[%clk 0:02:05.1]} 13... h4 {[%clk 0:02:24]} 14. Rf1 {[%clk 0:01:44.4]}
14... Qe7 {[%clk 0:01:29.4]} 15. O-O-O {[%clk 0:01:37.3]} 15... O-O-O {[%clk
0:01:29.5]} 16. g4 {[%clk 0:01:22.2]} 16... Ng5 {[%clk 0:01:16.6]} 17. Kb1
{[%clk 0:01:16.1]} 17... Kb8 {[%clk 0:01:16.5]} 18. Rc1 {[%clk 0:01:14.5]} 18...
Qf6 {[%clk 0:01:03.3]} 19. f4 {[%clk 0:01:13.1]} 19... exf4 {[%clk 0:01:03.6]}
20. Nxf4 {[%clk 0:01:13.5]} 20... Nxf4 {[%clk 0:01:03.8]} 21. Bxf4 {[%clk
0:01:12.4]} 21... Qe7 {[%clk 0:01:01.6]} 22. Bxg5 {[%clk 0:01:09.3]} 22... Qxg5
{[%clk 0:01:02.5]} 23. Rxf7 {[%clk 0:01:09.5]} 23... Rhf8 {[%clk 0:00:58.5]} 24.
Rcf1 {[%clk 0:01:08.8]} 24... Rxf7 {[%clk 0:00:58.3]} 25. Rxf7 {[%clk
0:01:09.7]} 25... Qg6 {[%clk 0:00:54.5]} 26. Rf1 {[%clk 0:01:03.5]} 26... Bd4
{[%clk 0:00:51.5]} 27. Ne2 {[%clk 0:00:53.5]} 27... Be5 {[%clk 0:00:51.5]} 28.
Qd2 {[%clk 0:00:54]} 28... c6 {[%clk 0:00:33.2]} 29. Nd4 {[%clk 0:00:48.4]}
29... cxd5 {[%clk 0:00:31.6]} 30. cxd5 {[%clk 0:00:49.3]} 30... Rc8 {[%clk
0:00:28.6]} 31. Rc1 {[%clk 0:00:28.6]} 31... Rxc1+ {[%clk 0:00:23.2]} 32. Kxc1
{[%clk 0:00:29.5]} 32... Qf6 {[%clk 0:00:21.5]} 33. Nf5 {[%clk 0:00:09.5]} 33...
g6 {[%clk 0:00:20.5]} 34. Qh6 {[%clk 0:00:08.2]} 34... Bxb2+ {[%clk 0:00:14]}
35. Kb1 {[%clk 0:00:08.6]} 35... gxf5 {[%clk 0:00:13.1]} 36. Qh7 {[%clk
0:00:08.2]} 36... Qc3 {[%clk 0:00:08.8]} 37. Qh6 {[%clk 0:00:08.3]} 37... Ba3
{[%clk 0:00:07]} 0-1

[Event "*** SCC Grand Prix: Titled Tuesday Blitz"]
[Site "Chess.com"]
[Date "2020.06.02"]
[Round "2"]
[White "jocmil"]
[Black "JakubPulpan"]
[Result "0-1"]
[WhiteElo "2483"]
[BlackElo "2723"]
[TimeControl "180+1"]
[EndTime "10:17:51 PDT"]
[Termination "JakubPulpan won by resignation"]

1. d4 {[%clk 0:03:00.9]} 1... Nf6 {[%clk 0:02:59.9]} 2. Nf3 {[%clk 0:03:00.5]}
2... e6 {[%clk 0:02:52.5]} 3. Bg5 {[%clk 0:02:59.8]} 3... c5 {[%clk 0:02:51.9]}
4. c3 {[%clk 0:02:58]} 4... Nc6 {[%clk 0:02:50.3]} 5. e3 {[%clk 0:02:57.7]} 5...
h6 {[%clk 0:02:49.3]} 6. Bh4 {[%clk 0:02:57.4]} 6... Be7 {[%clk 0:02:49.4]} 7.
Nbd2 {[%clk 0:02:56.9]} 7... b6 {[%clk 0:02:48]} 8. Bd3 {[%clk 0:02:56.1]} 8...
Bb7 {[%clk 0:02:48.2]} 9. Qe2 {[%clk 0:02:53.8]} 9... cxd4 {[%clk 0:02:42.1]}
10. exd4 {[%clk 0:02:53.7]} 10... Nh5 {[%clk 0:02:42.4]} 11. Bg3 {[%clk
0:02:42.6]} 11... Nxg3 {[%clk 0:02:36.2]} 12. hxg3 {[%clk 0:02:43.5]} 12... Qc7
{[%clk 0:02:36.2]} 13. Ba6 {[%clk 0:02:25.1]} 13... Bxa6 {[%clk 0:02:29.6]} 14.
Qxa6 {[%clk 0:02:26]} 14... b5 {[%clk 0:02:28.7]} 15. d5 {[%clk 0:02:10.6]}
15... exd5 {[%clk 0:02:25]} 16. Qxb5 {[%clk 0:02:10.3]} 16... d4 {[%clk
0:02:10.5]} 17. cxd4 {[%clk 0:01:57.5]} 17... Rb8 {[%clk 0:02:09.1]} 18. Qc4
{[%clk 0:01:56.3]} 18... d5 {[%clk 0:01:16.8]} 19. Qc3 {[%clk 0:01:42.7]} 19...
O-O {[%clk 0:01:03.8]} 20. Rc1 {[%clk 0:01:35.2]} 20... Rfc8 {[%clk 0:00:48]}
21. O-O {[%clk 0:01:33.1]} 21... Bb4 {[%clk 0:00:46.3]} 22. Qd3 {[%clk
0:01:28.3]} 22... Bxd2 {[%clk 0:00:41]} 23. Qxd2 {[%clk 0:01:29.2]} 23... Qb6
{[%clk 0:00:39.4]} 24. b3 {[%clk 0:01:24.3]} 24... Rc7 {[%clk 0:00:39.2]} 25.
Rc2 {[%clk 0:01:15.8]} 25... Re7 {[%clk 0:00:25]} 26. Rfc1 {[%clk 0:01:09.6]}
26... Re6 {[%clk 0:00:25.1]} 27. Rc5 {[%clk 0:00:57.2]} 27... Rd8 {[%clk
0:00:20.4]} 28. Qf4 {[%clk 0:00:49.3]} 28... Nb4 {[%clk 0:00:15.6]} 29. Rc7
{[%clk 0:00:48.3]} 29... Rf6 {[%clk 0:00:13.8]} 30. Qd2 {[%clk 0:00:46.7]} 30...
Nc6 {[%clk 0:00:10.4]} 31. R7xc6 {[%clk 0:00:30.7]} 31... Rxc6 {[%clk
0:00:11.3]} 32. Rxc6 {[%clk 0:00:30.9]} 32... Qxc6 {[%clk 0:00:12.2]} 33. Ne5
{[%clk 0:00:31.5]} 33... Qc7 {[%clk 0:00:12.7]} 34. Nd3 {[%clk 0:00:14.4]} 34...
Re8 {[%clk 0:00:10]} 35. Nc5 {[%clk 0:00:14.4]} 35... Qb6 {[%clk 0:00:09.7]} 36.
g4 {[%clk 0:00:12.6]} 36... Qb5 {[%clk 0:00:09.7]} 37. g3 {[%clk 0:00:11.5]}
37... Qe2 {[%clk 0:00:08.9]} 38. Qxe2 {[%clk 0:00:11.9]} 38... Rxe2 {[%clk
0:00:08.6]} 39. a4 {[%clk 0:00:12.5]} 39... Rd2 {[%clk 0:00:09.1]} 40. b4 {[%clk
0:00:11.3]} 40... Rxd4 {[%clk 0:00:09.2]} 41. b5 {[%clk 0:00:11.9]} 41... Rc4
{[%clk 0:00:09.6]} 42. Nb3 {[%clk 0:00:11]} 42... Rxa4 {[%clk 0:00:09.7]} 0-1

[Event "*** SCC Grand Prix: Titled Tuesday Blitz"]
[Site "Chess.com"]
[Date "2020.06.02"]
[Round "2"]
[White "garicradomir"]
[Black "Stewie_89"]
[Result "0-1"]
[WhiteElo "2273"]
[BlackElo "2636"]
[TimeControl "180+1"]
[EndTime "10:17:54 PDT"]
[Termination "Stewie_89 won by checkmate"]

1. e4 {[%clk 0:03:00.9]} 1... Nf6 {[%clk 0:02:58.4]} 2. e5 {[%clk 0:02:59.6]}
2... Nd5 {[%clk 0:02:58.6]} 3. Nf3 {[%clk 0:03:00.1]} 3... d6 {[%clk 0:02:58.7]}
4. Bc4 {[%clk 0:02:59.6]} 4... c6 {[%clk 0:02:58.6]} 5. O-O {[%clk 0:02:58.3]}
5... g6 {[%clk 0:02:58.9]} 6. d4 {[%clk 0:02:53.7]} 6... Bg7 {[%clk 0:02:55.1]}
7. Re1 {[%clk 0:02:51.6]} 7... O-O {[%clk 0:02:53.7]} 8. h3 {[%clk 0:02:50.7]}
8... dxe5 {[%clk 0:02:43.9]} 9. Nxe5 {[%clk 0:02:50]} 9... Be6 {[%clk 0:02:44]}
10. Bb3 {[%clk 0:02:47.4]} 10... Nd7 {[%clk 0:02:37.7]} 11. Nf3 {[%clk
0:02:47.3]} 11... Nc7 {[%clk 0:02:17.8]} 12. Nbd2 {[%clk 0:02:43.7]} 12... Bxb3
{[%clk 0:02:16.4]} 13. Nxb3 {[%clk 0:02:43.4]} 13... Re8 {[%clk 0:02:16.3]} 14.
Bg5 {[%clk 0:02:42.9]} 14... h6 {[%clk 0:02:15.6]} 15. Bh4 {[%clk 0:02:42.3]}
15... Nf6 {[%clk 0:02:02.4]} 16. Qe2 {[%clk 0:02:38.3]} 16... Ncd5 {[%clk
0:01:53.1]} 17. Rad1 {[%clk 0:02:18.9]} 17... Nh5 {[%clk 0:01:33.3]} 18. Ne5
{[%clk 0:02:01]} 18... Ndf4 {[%clk 0:01:29.4]} 19. Qf3 {[%clk 0:01:54.6]} 19...
g5 {[%clk 0:01:27.2]} 20. Bg3 {[%clk 0:01:52.9]} 20... Qd5 {[%clk 0:01:20.2]}
21. Bxf4 {[%clk 0:01:14.8]} 21... Nxf4 {[%clk 0:01:18.5]} 22. Re4 {[%clk
0:01:03.9]} 22... Rad8 {[%clk 0:00:56.4]} 23. c4 {[%clk 0:00:56.6]} 23... Qd6
{[%clk 0:00:52.9]} 24. Rde1 {[%clk 0:00:53.1]} 24... Bxe5 {[%clk 0:00:34]} 25.
Rxe5 {[%clk 0:00:50.1]} 25... e6 {[%clk 0:00:34]} 26. c5 {[%clk 0:00:44.7]}
26... Qd7 {[%clk 0:00:33.5]} 27. Kh2 {[%clk 0:00:43.4]} 27... Ng6 {[%clk
0:00:33.4]} 28. R5e4 {[%clk 0:00:41.3]} 28... Nf4 {[%clk 0:00:28.9]} 29. g3
{[%clk 0:00:38.3]} 29... Nd5 {[%clk 0:00:28.6]} 30. h4 {[%clk 0:00:37.9]} 30...
Kg7 {[%clk 0:00:26.4]} 31. Nd2 {[%clk 0:00:32.3]} 31... Nf6 {[%clk 0:00:25.9]}
32. hxg5 {[%clk 0:00:29.2]} 32... hxg5 {[%clk 0:00:25.4]} 33. Re5 {[%clk
0:00:24]} 33... Rh8+ {[%clk 0:00:20.4]} 34. Kg2 {[%clk 0:00:23.2]} 34... Qxd4
{[%clk 0:00:15.1]} 35. Rxg5+ {[%clk 0:00:21.8]} 35... Kf8 {[%clk 0:00:15.4]} 36.
Ne4 {[%clk 0:00:20.4]} 36... Nxe4 {[%clk 0:00:15]} 37. Rxe4 {[%clk 0:00:21.2]}
37... Qd3 {[%clk 0:00:14.3]} 38. Qf4 {[%clk 0:00:12.6]} 38... Qb1 {[%clk
0:00:13.8]} 39. Rh5 {[%clk 0:00:01.5]} 39... Rxh5 {[%clk 0:00:10.8]} 40. g4
{[%clk 0:00:01.9]} 40... Qh1+ {[%clk 0:00:09.6]} 41. Kg3 {[%clk 0:00:02.8]}
41... Rh3# {[%clk 0:00:09.9]} 0-1

[Event "*** SCC Grand Prix: Titled Tuesday Blitz"]
[Site "Chess.com"]
[Date "2020.06.02"]
[Round "2"]
[White "EfM13"]
[Black "murtas73"]
[Result "0-1"]
[WhiteElo "2311"]
[BlackElo "2662"]
[TimeControl "180+1"]
[EndTime "10:17:59 PDT"]
[Termination "murtas73 won on time"]

1. e4 {[%clk 0:03:00.9]} 1... e6 {[%clk 0:02:56.3]} 2. d3 {[%clk 0:02:57.4]}
2... d5 {[%clk 0:02:54.4]} 3. Nd2 {[%clk 0:02:57.4]} 3... c5 {[%clk 0:02:51.5]}
4. g3 {[%clk 0:02:57.2]} 4... Nc6 {[%clk 0:02:50.3]} 5. Bg2 {[%clk 0:02:57.1]}
5... Nf6 {[%clk 0:02:50.4]} 6. Ne2 {[%clk 0:02:56.8]} 6... g6 {[%clk 0:02:50.4]}
7. O-O {[%clk 0:02:56.1]} 7... Bg7 {[%clk 0:02:50.9]} 8. c3 {[%clk 0:02:56.2]}
8... O-O {[%clk 0:02:50.8]} 9. Qc2 {[%clk 0:02:53.9]} 9... e5 {[%clk 0:02:47.7]}
10. a4 {[%clk 0:02:24.9]} 10... Bg4 {[%clk 0:02:43.2]} 11. Re1 {[%clk
0:01:47.5]} 11... Qd7 {[%clk 0:02:41.9]} 12. Nb3 {[%clk 0:01:37.6]} 12... b6
{[%clk 0:02:34.1]} 13. Bg5 {[%clk 0:01:27.5]} 13... d4 {[%clk 0:02:21.4]} 14.
cxd4 {[%clk 0:01:06.9]} 14... cxd4 {[%clk 0:02:20.3]} 15. Qd2 {[%clk 0:01:05.1]}
15... Be6 {[%clk 0:02:16.2]} 16. Nbc1 {[%clk 0:01:01.1]} 16... Rfc8 {[%clk
0:02:16.1]} 17. b4 {[%clk 0:00:58.5]} 17... a5 {[%clk 0:02:13.1]} 18. bxa5
{[%clk 0:00:33.4]} 18... bxa5 {[%clk 0:02:14]} 19. Rb1 {[%clk 0:00:32]} 19...
Nb4 {[%clk 0:02:12.6]} 20. Rb2 {[%clk 0:00:31.9]} 20... Ne8 {[%clk 0:02:08.9]}
21. f4 {[%clk 0:00:30.9]} 21... Qxa4 {[%clk 0:02:07.8]} 22. fxe5 {[%clk
0:00:29.4]} 22... Bxe5 {[%clk 0:02:00.8]} 23. Nf4 {[%clk 0:00:29.4]} 23... Rc2
{[%clk 0:01:57.5]} 24. Rxc2 {[%clk 0:00:28.9]} 24... Qxc2 {[%clk 0:01:58.1]} 25.
Nxe6 {[%clk 0:00:20.3]} 25... fxe6 {[%clk 0:01:55.3]} 26. Bh3 {[%clk 0:00:20.1]}
26... Qxd2 {[%clk 0:01:49.3]} 27. Bxd2 {[%clk 0:00:19.8]} 27... Kf7 {[%clk
0:01:49.4]} 28. Nb3 {[%clk 0:00:19.8]} 28... Nxd3 {[%clk 0:01:42.7]} 29. Rf1+
{[%clk 0:00:19.9]} 29... Ke7 {[%clk 0:01:40.6]} 30. Nxa5 {[%clk 0:00:19.9]}
30... Rc8 {[%clk 0:01:28.8]} 31. Rb1 {[%clk 0:00:15.7]} 31... Rc2 {[%clk
0:01:26.5]} 32. Rb7+ {[%clk 0:00:14.3]} 32... Nc7 {[%clk 0:01:25.9]} 33. Bg5+
{[%clk 0:00:13.6]} 33... Kd7 {[%clk 0:01:24.2]} 34. Nb3 {[%clk 0:00:11.5]} 34...
Nf2 {[%clk 0:01:15.5]} 35. Bg2 {[%clk 0:00:10.3]} 35... Ng4 {[%clk 0:01:15]} 36.
h3 {[%clk 0:00:09.6]} 36... Ne3 {[%clk 0:01:14.3]} 37. Bf3 {[%clk 0:00:09.3]}
37... Kc6 {[%clk 0:01:04.9]} 38. Rb8 {[%clk 0:00:07.9]} 38... Nb5 {[%clk
0:00:59.8]} 39. Rc8+ {[%clk 0:00:07.2]} 39... Bc7 {[%clk 0:00:59.4]} 40. Bf4
{[%clk 0:00:06]} 40... Kd7 {[%clk 0:00:57.3]} 41. Rh8 {[%clk 0:00:03.8]} 41...
Bxf4 {[%clk 0:00:50.9]} 42. Rxh7+ {[%clk 0:00:03.6]} 42... Kd8 {[%clk
0:00:48.3]} 43. gxf4 {[%clk 0:00:04.5]} 43... d3 {[%clk 0:00:45.1]} 44. Bg4
{[%clk 0:00:04.2]} 44... Nxg4 {[%clk 0:00:42.4]} 45. hxg4 {[%clk 0:00:03.8]}
45... Rb2 {[%clk 0:00:42.8]} 46. Nc5 {[%clk 0:00:03.6]} 46... d2 {[%clk
0:00:43.1]} 47. Nxe6+ {[%clk 0:00:03]} 47... Kc8 {[%clk 0:00:43.3]} 48. Rh8+
{[%clk 0:00:01.8]} 48... Kd7 {[%clk 0:00:42.3]} 49. Rd8+ {[%clk 0:00:01.8]}
49... Kxe6 {[%clk 0:00:42]} 50. f5+ {[%clk 0:00:01.9]} 50... gxf5 {[%clk
0:00:40.1]} 51. exf5+ {[%clk 0:00:01.7]} 51... Ke7 {[%clk 0:00:40.5]} 0-1

[Event "*** SCC Grand Prix: Titled Tuesday Blitz"]
[Site "Chess.com"]
[Date "2020.06.02"]
[Round "2"]
[White "SirMittensofMittensville"]
[Black "The_Machine04"]
[Result "1-0"]
[WhiteElo "2599"]
[BlackElo "2299"]
[TimeControl "180+1"]
[EndTime "10:17:59 PDT"]
[Termination "SirMittensofMittensville won on time"]

1. e4 {[%clk 0:03:00.9]} 1... d6 {[%clk 0:02:59.4]} 2. d4 {[%clk 0:03:00.1]}
2... Nf6 {[%clk 0:02:57.1]} 3. Nc3 {[%clk 0:03:00.8]} 3... e5 {[%clk 0:02:53.4]}
4. Nf3 {[%clk 0:03:00.6]} 4... Nbd7 {[%clk 0:02:51.2]} 5. Bc4 {[%clk 0:03:01.3]}
5... Be7 {[%clk 0:02:50.8]} 6. O-O {[%clk 0:03:01.9]} 6... c6 {[%clk 0:02:50.7]}
7. Re1 {[%clk 0:03:02.6]} 7... b5 {[%clk 0:02:49]} 8. Bb3 {[%clk 0:03:00.4]}
8... a5 {[%clk 0:02:48.2]} 9. d5 {[%clk 0:02:48.9]} 9... cxd5 {[%clk 0:02:35]}
10. Nxd5 {[%clk 0:02:47.3]} 10... a4 {[%clk 0:02:29.6]} 11. Nxf6+ {[%clk
0:02:32]} 11... Nxf6 {[%clk 0:02:29]} 12. Bd5 {[%clk 0:02:31.3]} 12... Nxd5
{[%clk 0:02:27]} 13. Qxd5 {[%clk 0:02:32.2]} 13... Rb8 {[%clk 0:02:22.1]} 14.
Be3 {[%clk 0:02:27.2]} 14... O-O {[%clk 0:02:18.4]} 15. Rad1 {[%clk 0:02:20]}
15... Be6 {[%clk 0:02:05.3]} 16. Qc6 {[%clk 0:02:18.1]} 16... Qc8 {[%clk
0:01:58.6]} 17. Rxd6 {[%clk 0:02:03.7]} 17... Bxd6 {[%clk 0:01:42.2]} 18. Qxd6
{[%clk 0:02:04.6]} 18... Qxc2 {[%clk 0:01:40.2]} 19. Qxe5 {[%clk 0:01:58.3]}
19... Rbd8 {[%clk 0:01:22.2]} 20. Bd4 {[%clk 0:01:52.5]} 20... Rxd4 {[%clk
0:01:14.4]} 21. Qxd4 {[%clk 0:01:53.4]} 21... Bxa2 {[%clk 0:01:09.4]} 22. Ne5
{[%clk 0:01:48.3]} 22... Be6 {[%clk 0:01:01.4]} 23. h4 {[%clk 0:01:47]} 23... h6
{[%clk 0:00:55.4]} 24. Re3 {[%clk 0:01:41.6]} 24... Qc1+ {[%clk 0:00:42.4]} 25.
Kh2 {[%clk 0:01:40.4]} 25... Qc7 {[%clk 0:00:39.6]} 26. Rg3 {[%clk 0:01:37.9]}
26... Rd8 {[%clk 0:00:31.3]} 27. Nd7 {[%clk 0:01:00.9]} 27... Bg4 {[%clk
0:00:20]} 28. e5 {[%clk 0:00:53.8]} 28... Qxd7 {[%clk 0:00:18.5]} 29. Qxg4
{[%clk 0:00:50.7]} 29... Qxg4 {[%clk 0:00:18.4]} 30. Rxg4 {[%clk 0:00:51.6]}
30... Rd5 {[%clk 0:00:18.1]} 31. Re4 {[%clk 0:00:49.2]} 31... Kf8 {[%clk
0:00:17.7]} 32. Kg3 {[%clk 0:00:44.6]} 32... Rd3+ {[%clk 0:00:16.6]} 33. f3
{[%clk 0:00:38.8]} 33... Rb3 {[%clk 0:00:16.6]} 34. Re2 {[%clk 0:00:39.5]} 34...
Ke7 {[%clk 0:00:16.8]} 35. Kf4 {[%clk 0:00:38.5]} 35... Ke6 {[%clk 0:00:16.7]}
36. g4 {[%clk 0:00:37.1]} 36... b4 {[%clk 0:00:14.4]} 37. Rc2 {[%clk 0:00:34.3]}
37... a3 {[%clk 0:00:12]} 38. bxa3 {[%clk 0:00:35.2]} 38... bxa3 {[%clk
0:00:10.6]} 39. Rc6+ {[%clk 0:00:35.8]} 39... Ke7 {[%clk 0:00:10.8]} 40. Ra6
{[%clk 0:00:35.7]} 40... g6 {[%clk 0:00:08.9]} 41. h5 {[%clk 0:00:35.1]} 41...
g5+ {[%clk 0:00:08.5]} 42. Kg3 {[%clk 0:00:35.6]} 42... Re3 {[%clk 0:00:07.5]}
43. Rxh6 {[%clk 0:00:34.9]} 43... a2 {[%clk 0:00:07]} 44. Ra6 {[%clk 0:00:34.9]}
44... Re2 {[%clk 0:00:06.9]} 45. h6 {[%clk 0:00:23.7]} 45... Rxe5 {[%clk
0:00:06.5]} 46. h7 {[%clk 0:00:20.6]} 46... Re6 {[%clk 0:00:04.7]} 47. Ra7+
{[%clk 0:00:20]} 1-0

[Event "*** SCC Grand Prix: Titled Tuesday Blitz"]
[Site "Chess.com"]
[Date "2020.06.02"]
[Round "2"]
[White "Ave_Mariia"]
[Black "LedakovAlexandr"]
[Result "1-0"]
[WhiteElo "2290"]
[BlackElo "2488"]
[TimeControl "180+1"]
[EndTime "10:17:59 PDT"]
[Termination "Ave_Mariia won by resignation"]

1. c4 {[%clk 0:03:00.9]} 1... Nc6 {[%clk 0:03:00.9]} 2. Nc3 {[%clk 0:02:58.3]}
2... d6 {[%clk 0:03:00.6]} 3. g3 {[%clk 0:02:57.4]} 3... g6 {[%clk 0:03:01.5]}
4. Bg2 {[%clk 0:02:57.6]} 4... Bg7 {[%clk 0:03:02.3]} 5. Nf3 {[%clk 0:02:57.5]}
5... e5 {[%clk 0:03:02]} 6. d3 {[%clk 0:02:56.6]} 6... Nge7 {[%clk 0:03:02.9]}
7. O-O {[%clk 0:02:55.8]} 7... O-O {[%clk 0:03:02.6]} 8. Rb1 {[%clk 0:02:46.7]}
8... f5 {[%clk 0:03:02.6]} 9. Qc2 {[%clk 0:02:44.4]} 9... a5 {[%clk 0:02:55.1]}
10. a3 {[%clk 0:02:44.3]} 10... a4 {[%clk 0:02:31.5]} 11. Nxa4 {[%clk
0:02:38.5]} 11... e4 {[%clk 0:02:31.6]} 12. dxe4 {[%clk 0:02:30.6]} 12... fxe4
{[%clk 0:02:32.5]} 13. Ng5 {[%clk 0:02:17.3]} 13... Nd4 {[%clk 0:02:25.2]} 14.
Qd1 {[%clk 0:02:17]} 14... c6 {[%clk 0:01:39.7]} 15. Nxe4 {[%clk 0:02:09.7]}
15... d5 {[%clk 0:01:14]} 16. cxd5 {[%clk 0:01:59.8]} 16... cxd5 {[%clk
0:01:14.9]} 17. Nec3 {[%clk 0:01:57]} 17... Bg4 {[%clk 0:00:47.3]} 18. Be3
{[%clk 0:01:40.6]} 18... Nef5 {[%clk 0:00:43.5]} 19. Bxd4 {[%clk 0:01:26.1]}
19... Nxd4 {[%clk 0:00:33.2]} 20. h3 {[%clk 0:01:08.1]} 20... Bf5 {[%clk
0:00:19.2]} 21. Bxd5+ {[%clk 0:01:06.9]} 21... Kh8 {[%clk 0:00:17.1]} 22. Rc1
{[%clk 0:00:47.5]} 22... Bxh3 {[%clk 0:00:16.2]} 23. Bg2 {[%clk 0:00:42.6]}
23... Bg4 {[%clk 0:00:15.7]} 24. Nc5 {[%clk 0:00:30.7]} 24... Nxe2+ {[%clk
0:00:10.7]} 25. Nxe2 {[%clk 0:00:28.8]} 25... Qxd1 {[%clk 0:00:10.3]} 26. Rfxd1
{[%clk 0:00:29]} 26... Bxe2 {[%clk 0:00:10.4]} 27. Rd2 {[%clk 0:00:25]} 27...
Bh6 {[%clk 0:00:06.6]} 28. f4 {[%clk 0:00:24]} 28... Bg4 {[%clk 0:00:05.2]} 29.
Bxb7 {[%clk 0:00:20.7]} 29... Rab8 {[%clk 0:00:02.8]} 30. b4 {[%clk 0:00:16.4]}
30... Bg7 {[%clk 0:00:02.3]} 31. Bg2 {[%clk 0:00:14.9]} 31... g5 {[%clk
0:00:02.5]} 32. fxg5 {[%clk 0:00:14.2]} 32... Be5 {[%clk 0:00:02.3]} 33. Ne4
{[%clk 0:00:13.5]} 33... Bf5 {[%clk 0:00:01.6]} 34. Rd5 {[%clk 0:00:12.3]} 34...
Rbe8 {[%clk 0:00:01.2]} 35. Rcc5 {[%clk 0:00:11.8]} 35... Bg7 {[%clk 0:00:02]}
36. Rxf5 {[%clk 0:00:11.9]} 36... Rg8 {[%clk 0:00:02.6]} 37. Rf7 {[%clk
0:00:11.7]} 37... Re5 {[%clk 0:00:02.6]} 38. Rxe5 {[%clk 0:00:11.4]} 38... Bxe5
{[%clk 0:00:03.5]} 39. Nf6 {[%clk 0:00:11.6]} 39... Bd4+ {[%clk 0:00:04.4]} 40.
Kh2 {[%clk 0:00:11.4]} 40... Bxf6 {[%clk 0:00:04.6]} 41. gxf6 {[%clk 0:00:11.6]}
41... Rg5 {[%clk 0:00:05]} 42. Rf8+ {[%clk 0:00:10.7]} 42... Rg8 {[%clk
0:00:05.9]} 43. Rxg8+ {[%clk 0:00:11.2]} 43... Kxg8 {[%clk 0:00:06.8]} 44. Bd5+
{[%clk 0:00:11.7]} 44... Kf8 {[%clk 0:00:07.2]} 45. f7 {[%clk 0:00:12.6]} 1-0

[Event "*** SCC Grand Prix: Titled Tuesday Blitz"]
[Site "Chess.com"]
[Date "2020.06.02"]
[Round "2"]
[White "floplover"]
[Black "catalin009"]
[Result "1-0"]
[WhiteElo "2196"]
[BlackElo "2406"]
[TimeControl "180+1"]
[EndTime "10:17:59 PDT"]
[Termination "floplover won by checkmate"]

1. d4 {[%clk 0:03:00.9]} 1... Nf6 {[%clk 0:02:59.7]} 2. c4 {[%clk 0:03:00.7]}
2... e6 {[%clk 0:02:59.7]} 3. Nc3 {[%clk 0:03:00.6]} 3... Bb4 {[%clk 0:02:59.2]}
4. Qc2 {[%clk 0:03:00.9]} 4... O-O {[%clk 0:02:58.5]} 5. e4 {[%clk 0:03:00]}
5... d6 {[%clk 0:02:46]} 6. e5 {[%clk 0:02:53.4]} 6... dxe5 {[%clk 0:02:45.6]}
7. dxe5 {[%clk 0:02:54.3]} 7... Nfd7 {[%clk 0:02:44.9]} 8. Bf4 {[%clk
0:02:46.9]} 8... Nc6 {[%clk 0:02:37.7]} 9. Nf3 {[%clk 0:02:37.1]} 9... f6 {[%clk
0:02:30.7]} 10. exf6 {[%clk 0:02:27.7]} 10... Qxf6 {[%clk 0:02:28.9]} 11. Be3
{[%clk 0:02:11.1]} 11... Bxc3+ {[%clk 0:01:57.7]} 12. bxc3 {[%clk 0:02:10.8]}
12... Nde5 {[%clk 0:01:55]} 13. Nxe5 {[%clk 0:02:04]} 13... Nxe5 {[%clk
0:01:55.9]} 14. Be2 {[%clk 0:02:04.5]} 14... Bd7 {[%clk 0:01:48.2]} 15. Bd4
{[%clk 0:01:45.7]} 15... Bc6 {[%clk 0:01:42.4]} 16. O-O-O {[%clk 0:01:22.6]}
16... Rad8 {[%clk 0:01:06.9]} 17. Kb2 {[%clk 0:00:47.3]} 17... Qg5 {[%clk
0:00:24.9]} 18. h4 {[%clk 0:00:30.6]} 18... Qf6 {[%clk 0:00:08.2]} 19. Rh3
{[%clk 0:00:28.7]} 19... g6 {[%clk 0:00:04.3]} 20. Re3 {[%clk 0:00:25.5]} 20...
Rxd4 {[%clk 0:00:03.5]} 21. cxd4 {[%clk 0:00:24]} 21... Nd7 {[%clk 0:00:03.1]}
22. Bf3 {[%clk 0:00:20.1]} 22... Nb6 {[%clk 0:00:02.4]} 23. Bxc6 {[%clk
0:00:18.4]} 23... bxc6 {[%clk 0:00:03.3]} 24. f3 {[%clk 0:00:15]} 24... c5
{[%clk 0:00:03.2]} 25. Qd3 {[%clk 0:00:10.1]} 25... Rb8 {[%clk 0:00:02.3]} 26.
Kc2 {[%clk 0:00:09.2]} 26... Qf8 {[%clk 0:00:01.7]} 27. Rde1 {[%clk 0:00:09.2]}
27... cxd4 {[%clk 0:00:02.1]} 28. Rxe6 {[%clk 0:00:08.8]} 28... Qb4 {[%clk
0:00:02.5]} 29. Re8+ {[%clk 0:00:07.3]} 29... Rxe8 {[%clk 0:00:01.3]} 30. Rxe8+
{[%clk 0:00:08.2]} 30... Kf7 {[%clk 0:00:02.2]} 31. Re4 {[%clk 0:00:06.2]} 31...
Na4 {[%clk 0:00:02.8]} 32. Rxd4 {[%clk 0:00:05.1]} 32... Qb2+ {[%clk 0:00:03]}
33. Kd1 {[%clk 0:00:01.9]} 33... Nc3+ {[%clk 0:00:03.6]} 34. Ke1 {[%clk
0:00:02.3]} 34... Qc1+ {[%clk 0:00:04.3]} 35. Kf2 {[%clk 0:00:02.7]} 35... Na4
{[%clk 0:00:03.9]} 36. Re4 {[%clk 0:00:02.2]} 36... Kf6 {[%clk 0:00:04.2]} 37.
Qd5 {[%clk 0:00:03.1]} 37... Qc2+ {[%clk 0:00:03.5]} 38. Kg3 {[%clk 0:00:04]}
38... Nc3 {[%clk 0:00:03.8]} 39. Qc6+ {[%clk 0:00:04.4]} 39... Kf7 {[%clk
0:00:03.8]} 40. Qxc7+ {[%clk 0:00:05.3]} 40... Kf6 {[%clk 0:00:03.5]} 41. Qd6+
{[%clk 0:00:05.6]} 41... Kf7 {[%clk 0:00:03.1]} 42. Re7+ {[%clk 0:00:06.5]}
42... Kf8 {[%clk 0:00:03.4]} 43. Qd8# {[%clk 0:00:07.4]} 1-0